fUSD/lending_fUSD_20250202
["ID","MTS","AMOUNT","RATE_DAILY","PERIOD"]
[351315536,1738511529277,-2083.26,0.00013834,2]
[351315537,1738511529286,-1965.57,0.00013834,2]
[351315538,1738511529295,-1323.45,0.00013834,2]
[351315539,1738511529305,-1635.63,0.00013834,2]
[351315540,1738511529314,-5662.33,0.00013834,2]
[351315541,1738511529324,-774.16,0.00013834,2]
[351315542,1738511529334,-782.48,0.00013834,2]
[351315543,1738511529343,-7030.17,0.00013834,2]
[351315544,1738511529354,-2514.52,0.00013834,2]
[351315545,1738511529364,-681.48,0.00013834,2]
[351315546,1738511529373,-790.42,0.00013834,2]
[351315547,1738511529383,-3657.25,0.00013834,2]
[351315548,1738511529393,-3049.12,0.00013834,2]
[351315549,1738511529402,-1745.16,0.00013834,2]
[351315550,1738511529412,-1031.35,0.00013834,2]
[351315551,1738511529422,-1816.81,0.00013834,2]
[351315552,1738511529431,-528.0,0.00013834,2]
[351315553,1738511529440,-4052.48,0.00013834,2]
[351315554,1738511529451,-602.22,0.00013834,2]
[351315555,1738511529460,-1474.86,0.00013834,2]
[351315556,1738511529469,-4337.5,0.00013834,2]
[351315557,1738511529479,-1297.61,0.00013834,2]
[351315558,1738511529489,-1453.24,0.00013834,2]
[351315559,1738511529498,-1696.27,0.00013834,2]
[351315560,1738511529512,-1292.86,0.00013834,2]
[351315561,1738511529521,-1155.8,0.00013834,2]
[351315562,1738511529531,-734.3,0.00013834,2]
[351315563,1738511529541,-1512.01,0.00013834,2]
[351315564,1738511529551,-1336.03,0.00013834,2]
[351315565,1738511529561,-686.62,0.00013834,2]
[351315566,1738511529571,-1393.61,0.00013834,2]
[351315567,1738511529580,-1657.23,0.00013834,2]
[351315568,1738511529590,-1120.37,0.00013834,2]
[351315569,1738511529600,-823.51,0.00013834,2]
[351315570,1738511529610,-663.36,0.00013835,2]
[351315571,1738511529619,-500.0,0.00013835,2]
[351315572,1738511529629,-698.15,0.00013835,2]
[351315573,1738511529638,-705.16,0.00013835,2]
[351315574,1738511529647,-531.92,0.00013835,2]
[351315575,1738511529657,-500.0,0.00013835,2]
[351315576,1738511529667,-719.85,0.00013835,2]
[351315577,1738511529677,-594.38,0.00013835,2]
[351315578,1738511529686,-563.78,0.00013835,2]
[351315579,1738511529696,-752.42,0.00013835,2]
[351315580,1738511529706,-743.8,0.00013835,2]
[351315581,1738511529715,-500.0,0.00013835,2]
[351315582,1738511529724,-362.44,0.00013835,2]
[351315583,1738511529734,-725.47,0.00013835,2]
[351315584,1738511529744,-764.06,0.00013835,2]
[351315585,1738511529754,-698.18,0.00013835,2]
[351315586,1738511529764,-791.74,0.00013835,2]
[351315587,1738511529774,-807.25,0.00013835,2]
[351315588,1738511529784,-547.53,0.00013835,2]
[351315589,1738511529794,-837.73,0.00013835,2]
[351315590,1738511529805,-621.45,0.00013835,2]
[351315591,1738511529814,-631.63,0.00013835,2]
[351315592,1738511529824,-799.17,0.00013835,2]
[351315593,1738511529834,-771.95,0.00013835,2]
[351315594,1738511529844,-620.52,0.00013835,2]
[351315595,1738511529853,-618.87,0.00013835,2]
[351315596,1738511529863,-616.27,0.00013835,2]
[351315597,1738511529872,-565.37,0.00013835,2]
[351315598,1738511529882,-578.43990475,0.00013835,2]
[351315599,1738511529891,-780.81,0.00013835,2]
[351315600,1738511529902,-584.3,0.00013835,2]
[351315601,1738511529911,-455.08520244,0.00013835,2]
[351315602,1738511529921,-2686.29,0.00013835,2]
[351315603,1738511529931,-269.295923,0.00013835,2]
[351315604,1738511529940,-269.295923,0.00013835,2]
[351315605,1738511529950,-808.37,0.00013835,2]
[351315606,1738511529959,-794.83,0.00013835,2]
[351315607,1738511529969,-2679.98,0.00013835,2]
[351315608,1738511529979,-2338.08,0.00013835,2]
[351315609,1738511529989,-1073.23,0.00013835,2]
[351315610,1738511529999,-1683.79,0.00013835,2]
[351315611,1738511530009,-1816.82,0.00013835,2]
[351315612,1738511530018,-4162.42,0.00013835,2]
[351315613,1738511530028,-3144.7,0.00013835,2]
[351315614,1738511530038,-575.75,0.00013835,2]
[351315615,1738511530047,-689.19,0.00013835,2]
[351315616,1738511530058,-305.292181,0.00013835,2]
[351315617,1738511530067,-1191.99,0.00013835,2]
[351315618,1738511530077,-851.33,0.00013835,2]
[351315619,1738511530087,-677.75,0.00013835,2]
[351315620,1738511530096,-1595.43,0.00013835,2]
[351315621,1738511530107,-2506.07,0.00013835,2]
[351315622,1738511530116,-539.77,0.00013835,2]
[351315623,1738511530126,-842.15,0.00013835,2]
[351315624,1738511530135,-3571.76,0.00013835,2]
[351315625,1738511530146,-754.64,0.00013835,2]
[351315626,1738511530155,-779.97,0.00013835,2]
[351315627,1738511530164,-3366.95,0.00013835,2]
[351315628,1738511530173,-319.816449,0.00013835,2]
[351315629,1738511530183,-1388.96,0.00013835,2]
[351315630,1738511530193,-1447.22,0.00013835,2]
[351315631,1738511530204,-1621.42,0.00013835,2]
[351315632,1738511530214,-1280.75,0.00013835,2]
[351315633,1738511530223,-2398.8,0.00013835,2]
[351315634,1738511530233,-986.99,0.00013835,2]
[351315635,1738511530242,-6074.3,0.00013835,2]
[351315636,1738511530252,-886.37,0.00013835,2]
[351315637,1738511530262,-1376.7,0.00013835,2]
[351315638,1738511530271,-500.0,0.00013835,2]
[351315639,1738511530281,-715.29,0.00013835,2]
[351315640,1738511530290,-1472.49,0.00013835,2]
[351315641,1738511530300,-2816.92,0.00013835,2]
[351315642,1738511530309,-1537.46,0.00013835,2]
[351315643,1738511530318,-520.69,0.00013835,2]
[351315644,1738511530327,-1782.22,0.00013835,2]
[351315645,1738511530338,-2593.44,0.00013835,2]
[351315646,1738511530348,-1707.98,0.00013835,2]
[351315647,1738511530357,-814.03,0.00013835,2]
[351315648,1738511530367,-2517.19,0.00013835,2]
[351315649,1738511530377,-3495.99,0.00013835,2]
[351315650,1738511530387,-1097.15,0.00013835,2]
[351315651,1738511530396,-3686.72,0.00013835,2]
[351315652,1738511530406,-873.88,0.00013835,2]
[351315653,1738511530415,-4032.99,0.00013835,2]
[351315654,1738511530425,-2612.06,0.00013835,2]
[351315655,1738511530435,-3411.01,0.00013835,2]
[351315656,1738511530444,-2404.98,0.00013835,2]
[351315657,1738511530455,-430.73543398,0.00013835,2]
[351315658,1738511530464,-866.33,0.00013835,2]
[351315659,1738511530473,-3469.55,0.00013835,2]
[351315660,1738511530482,-1883.12,0.00013835,2]
[351315661,1738511530491,-2058.8,0.00013835,2]
[351315662,1738511530500,-1319.01,0.00013835,2]
[351315663,1738511530517,-608.43,0.00013835,2]
[351315664,1738511530527,-2391.61,0.00013835,2]
[351315665,1738511530537,-4530.32,0.00013835,2]
[351315666,1738511530546,-500.0,0.00013835,2]
[351315667,1738511530557,-1228.14,0.00013835,2]
[351315668,1738511530568,-6198.62,0.00013835,2]
[351315669,1738511530579,-4177.74,0.00013835,2]
[351315670,1738511530589,-853.08,0.00013835,2]
[351315671,1738511530599,-669.71,0.00013835,2]
[351315672,1738511530608,-539.5,0.00013835,2]
[351315673,1738511530617,-1402.67,0.00013835,2]
[351315674,1738511530625,-1801.53,0.00013835,2]
[351315675,1738511530635,-1549.92,0.00013835,2]
[351315676,1738511530646,-820.42,0.00013835,2]
[351315677,1738511530656,-569.44,0.00013835,2]
[351315678,1738511530666,-935.02,0.00013835,2]
[351315679,1738511530677,-816.63,0.00013835,2]
[351315680,1738511530848,-885.67,0.00013835,2]
[351315681,1738511530859,-5000.0,0.00013855,2]
[351315682,1738511530868,-5000.0,0.00013855,2]
[351315683,1738511530879,-5000.0,0.00013855,2]
[351315684,1738511530889,-5000.0,0.00013855,2]
[351315685,1738511530898,-500.0,0.00013873,2]
[351315686,1738511530907,-500.0,0.00013873,2]
[351315687,1738511530917,-500.0,0.00013873,2]
[351315688,1738511530927,-151.0,0.00013965,2]
[351315689,1738511530937,-705.724075,0.00013965,2]
[351315690,1738511530947,-705.724075,0.00013965,2]
[351315691,1738511530957,-1332.82,0.00013965,2]
[351315692,1738511530966,-1964.01,0.00013965,2]
[351315693,1738511530976,-2603.59,0.00013965,2]
[351315694,1738511530986,-2889.94,0.00013965,2]
[351315695,1738511530996,-4743.23,0.00013965,2]
[351315696,1738511531006,-10523.62,0.00013965,2]
[351315697,1738511531021,-1554.63,0.00013965,2]
[351315698,1738511531031,-1284.59,0.00013965,2]
[351315699,1738511531042,-1679.21,0.00013965,2]
[351315700,1738511531052,-2652.81,0.00013965,2]
[351315701,1738511531062,-654.17,0.00013965,2]
[351315702,1738511531072,-1718.82,0.00013965,2]
[351315703,1738511531082,-1974.37,0.00013965,2]
[351315704,1738511531093,-2000.83,0.00013965,2]
[351315705,1738511531103,-836.56,0.00013965,2]
[351315706,1738511531112,-1343.39,0.00013965,2]
[351315707,1738511531123,-1186.75,0.00013965,2]
[351315708,1738511531132,-596.58,0.00013966,2]
[351315709,1738511531142,-610.748132,0.00013966,2]
[351315710,1738511531152,-710.49,0.00013966,2]
[351315711,1738511531161,-1187.42,0.00013967,2]
[351315712,1738511531171,-817.82,0.00013967,2]
[351315713,1738511531180,-607.41,0.00013967,2]
[351315714,1738511531190,-556.63236169,0.00013967,2]
[351315715,1738511531201,-1230.03,0.00013967,2]
[351315716,1738511531212,-615.34,0.00013967,2]
[351315717,1738511531224,-714.07,0.00013967,2]
[351315718,1738511531234,-1449.17,0.00013967,2]
[351315719,1738511531244,-1251.19,0.00013967,2]
[351315720,1738511531254,-1405.84,0.00013967,2]
[351315721,1738511531264,-1494.61,0.00013967,2]
[351315722,1738511531274,-828.44,0.00013967,2]
[351315723,1738511531283,-500.0,0.00013967,2]
[351315724,1738511531292,-676.04,0.00013967,2]
[351315725,1738511531301,-535.23,0.00013967,2]
[351315726,1738511531311,-1723.36,0.00013967,2]
[351315727,1738511531320,-854.84,0.00013967,2]
[351315728,1738511531331,-1459.08,0.00013967,2]
[351315729,1738511531340,-1678.19,0.00013967,2]
[351315730,1738511531349,-571.62,0.00013967,2]
[351315731,1738511531359,-780.5,0.00013967,2]
[351315732,1738511531369,-1296.82,0.00013967,2]
[351315733,1738511531378,-1446.98,0.00013967,2]
[351315734,1738511531387,-618.81,0.00013967,2]
[351315735,1738511531397,-730.18,0.00013967,2]
[351315736,1738511531406,-644.95,0.00013967,2]
[351315737,1738511531416,-609.86,0.00013967,2]
[351315738,1738511531427,-323.22780939,0.00013969,2]
[351315739,1738511531435,-978.46,0.00013971,2]
[351315740,1738511531443,-518.13,0.00013971,2]
[351315741,1738511531454,-1147.35,0.00013971,2]
[351315742,1738511531463,-668.46,0.00013971,2]
[351315743,1738511531474,-1211.37,0.00013971,2]
[351315744,1738511531483,-594.76,0.00013971,2]
[351315745,1738511531492,-1093.43,0.00013971,2]
[351315746,1738511531502,-829.51,0.00013971,2]
[351315747,1738511531516,-635.30965749,0.00013971,2]
[351315748,1738511531526,-586.89013252,0.00013971,2]
[351315749,1738511531537,-1097.71,0.00013971,2]
[351315750,1738511531547,-1068.84,0.00013971,2]
[351315751,1738511531558,-581.41623605,0.00013971,2]
[351315752,1738511531569,-816.321679,0.00013971,2]
[351315753,1738511531580,-561.08,0.00013971,2]
[351315754,1738511531590,-553.986468,0.00013971,2]
[351315755,1738511531601,-515.69,0.00013971,2]
[351315756,1738511531611,-653.67,0.00013971,2]
[351315757,1738511531620,-553.986468,0.00013971,2]
[351315758,1738511531630,-1093.31,0.00013971,2]
[351315759,1738511531640,-1053.18,0.00013971,2]
[351315760,1738511531650,-1273.51,0.00013971,2]
[351315761,1738511531661,-522.28,0.00013971,2]
[351315762,1738511531671,-1239.31,0.00013971,2]
[351315763,1738511531682,-151.0,0.00013971,2]
[351315764,1738511531693,-151.0,0.00013971,2]
[351315765,1738511531706,-740.34,0.00013971,2]
[351315766,1738511531718,-644.61,0.00013971,2]
[351315767,1738511531729,-913.35,0.00013971,2]
[351315768,1738511531741,-652.17835,0.00013971,2]
[351315769,1738511531752,-652.17835,0.00013971,2]
[351315770,1738511531763,-1115.18,0.00013971,2]
[351315771,1738511531774,-1062.0,0.00013971,2]
[351315772,1738511531785,-1931.954796,0.00013971,2]
[351315773,1738511531797,-1931.954796,0.00013971,2]
[351315774,1738511531808,-945.68,0.00013971,2]
[351315775,1738511531819,-607.69,0.00013971,2]
[351315776,1738511531831,-522.96,0.00013971,2]
[351315777,1738511531843,-1035.26,0.00013971,2]
[351315778,1738511531854,-2196.81,0.00013971,2]
[351315779,1738511531865,-1325.26,0.00013971,2]
[351315780,1738511531876,-975.31,0.00013971,2]
[351315781,1738511531886,-1985.37,0.00013971,2]
[351315782,1738511531897,-918.08,0.00013971,2]
[351315783,1738511531908,-2083.26,0.00013971,2]
[351315784,1738511531919,-1965.57,0.00013971,2]
[351315785,1738511531930,-1323.45,0.00013971,2]
[351315786,1738511531941,-1635.63,0.00013971,2]
[351315787,1738511531955,-5662.33,0.00013971,2]
[351315788,1738511531966,-774.16,0.00013971,2]
[351315789,1738511531976,-782.48,0.00013971,2]
[351315790,1738511531987,-7030.17,0.00013971,2]
[351315791,1738511531998,-2514.52,0.00013971,2]
[351315792,1738511532008,-681.48,0.00013971,2]
[351315793,1738511532018,-790.42,0.00013971,2]
[351315794,1738511532028,-3657.25,0.00013971,2]
[351315795,1738511532038,-3049.12,0.00013971,2]
[351315796,1738511532047,-1745.16,0.00013971,2]
[351315797,1738511532057,-1031.35,0.00013971,2]
[351315798,1738511532066,-1816.81,0.00013971,2]
[351315799,1738511532077,-528.0,0.00013971,2]
[351315800,1738511532086,-4052.48,0.00013971,2]
[351315801,1738511532096,-602.22,0.00013971,2]
[351315802,1738511532105,-1474.86,0.00013971,2]
[351315803,1738511532114,-4337.5,0.00013971,2]
[351315804,1738511532124,-1297.61,0.00013971,2]
[351315805,1738511532133,-1453.24,0.00013971,2]
[351315806,1738511532143,-1696.27,0.00013971,2]
[351315807,1738511532152,-1292.86,0.00013971,2]
[351315808,1738511532162,-1155.8,0.00013971,2]
[351315809,1738511532171,-734.3,0.00013971,2]
[351315810,1738511532181,-1512.01,0.00013971,2]
[351315811,1738511532190,-1336.03,0.00013971,2]
[351315812,1738511532201,-686.62,0.00013971,2]
[351315813,1738511532210,-1393.61,0.00013971,2]
[351315814,1738511532220,-1657.23,0.00013971,2]
[351315815,1738511532229,-1120.37,0.00013971,2]
[351315816,1738511532239,-663.36,0.00013972,2]
[351315817,1738511532248,-500.0,0.00013972,2]
[351315818,1738511532259,-609.426977,0.00013972,2]
[351315819,1738511532269,-609.426977,0.00013972,2]
[351315820,1738511532280,-151.0,0.00013972,2]
[351315821,1738511532289,-151.0,0.00013972,2]
[351315822,1738511532298,-151.0,0.00013972,2]
[351315823,1738511532308,-698.15,0.00013972,2]
[351315824,1738511532317,-705.16,0.00013972,2]
[351315825,1738511532327,-531.92,0.00013972,2]
[351315826,1738511532336,-386.97,0.00013972,2]
[351315827,1738511532346,-719.85,0.00013972,2]
[351315828,1738511532355,-594.38,0.00013972,2]
[351315829,1738511532366,-563.78,0.00013972,2]
[351315830,1738511532377,-752.42,0.00013972,2]
[351315831,1738511532386,-743.8,0.00013972,2]
[351315832,1738511532395,-151.0,0.00013972,2]
[351315833,1738511532404,-500.0,0.00013972,2]
[351315834,1738511532413,-725.47,0.00013972,2]
[351315835,1738511532423,-764.06,0.00013972,2]
[351315836,1738511532432,-698.18,0.00013972,2]
[351315837,1738511532442,-791.74,0.00013972,2]
[351315838,1738511532451,-807.25,0.00013972,2]
[351315839,1738511532461,-547.53,0.00013972,2]
[351315840,1738511532471,-837.73,0.00013972,2]
[351315841,1738511532481,-621.45,0.00013972,2]
[351315842,1738511532491,-631.63,0.00013972,2]
[351315843,1738511532500,-799.17,0.00013972,2]
[351315844,1738511532511,-771.95,0.00013972,2]
[351315845,1738511532521,-620.52,0.00013972,2]
[351315846,1738511532533,-618.87,0.00013972,2]
[351315847,1738511532544,-616.27,0.00013972,2]
[351315848,1738511532555,-565.37,0.00013972,2]
[351315849,1738511532565,-780.81,0.00013972,2]
[351315850,1738511532575,-584.3,0.00013972,2]
[351315851,1738511532584,-2686.29,0.00013972,2]
[351315852,1738511532594,-808.37,0.00013972,2]
[351315853,1738511532604,-2679.98,0.00013972,2]
[351315854,1738511532614,-794.83,0.00013972,2]
[351315855,1738511532623,-2338.08,0.00013972,2]
[351315856,1738511532633,-1073.23,0.00013972,2]
[351315857,1738511532642,-1683.79,0.00013972,2]
[351315858,1738511532653,-1816.82,0.00013972,2]
[351315859,1738511532663,-4162.42,0.00013972,2]
[351315860,1738511532672,-3144.7,0.00013972,2]
[351315861,1738511532682,-575.75,0.00013972,2]
[351315862,1738511532691,-689.19,0.00013972,2]
[351315863,1738511532701,-305.292181,0.00013972,2]
[351315864,1738511532710,-1191.99,0.00013972,2]
[351315865,1738511532719,-851.33,0.00013972,2]
[351315866,1738511532729,-677.75,0.00013972,2]
[351315867,1738511532738,-1595.43,0.00013972,2]
[351315868,1738511532748,-2506.07,0.00013972,2]
[351315869,1738511532757,-539.77,0.00013972,2]
[351315870,1738511532766,-842.15,0.00013972,2]
[351315871,1738511532776,-3571.76,0.00013972,2]
[351315872,1738511532785,-754.64,0.00013972,2]
[351315873,1738511532795,-779.97,0.00013972,2]
[351315874,1738511532804,-3366.95,0.00013972,2]
[351315875,1738511532813,-319.816449,0.00013972,2]
[351315876,1738511532823,-1388.96,0.00013972,2]
[351315877,1738511532832,-1447.22,0.00013972,2]
[351315878,1738511532842,-1621.42,0.00013972,2]
[351315879,1738511532851,-1280.75,0.00013972,2]
[351315880,1738511532861,-2398.8,0.00013972,2]
[351315881,1738511532870,-986.99,0.00013972,2]
[351315882,1738511532879,-6074.3,0.00013972,2]
[351315883,1738511532889,-886.37,0.00013972,2]
[351315884,1738511532898,-1376.7,0.00013972,2]
[351315885,1738511532908,-178.68798874,0.00013972,2]
[351315886,1738511532917,-715.29,0.00013972,2]
[351315887,1738511532927,-1472.49,0.00013972,2]
[351315888,1738511532936,-2816.92,0.00013972,2]
[351315889,1738511532946,-1537.46,0.00013972,2]
[351315890,1738511532956,-520.69,0.00013972,2]
[351315891,1738511532966,-1782.22,0.00013972,2]
[351315892,1738511532975,-2593.44,0.00013972,2]
[351315893,1738511532984,-1707.98,0.00013972,2]
[351315894,1738511532994,-814.03,0.00013972,2]
[351315895,1738511533003,-2517.19,0.00013972,2]
[351315896,1738511533013,-1097.15,0.00013972,2]
[351315897,1738511533022,-3495.99,0.00013972,2]
[351315898,1738511533031,-3686.72,0.00013972,2]
[351315899,1738511533040,-873.88,0.00013972,2]
[351315900,1738511533050,-4032.99,0.00013972,2]
[351315901,1738511533060,-2612.06,0.00013972,2]
[351315902,1738511533069,-3411.01,0.00013972,2]
[351315903,1738511533079,-2404.98,0.00013972,2]
[351315904,1738511533089,-866.33,0.00013972,2]
[351315905,1738511533098,-3469.55,0.00013972,2]
[351315906,1738511533108,-1883.12,0.00013972,2]
[351315907,1738511533118,-2058.8,0.00013972,2]
[351315908,1738511533127,-1319.01,0.00013972,2]
[351315909,1738511533137,-608.43,0.00013972,2]
[351315910,1738511533146,-2391.61,0.00013972,2]
[351315911,1738511533157,-4530.32,0.00013972,2]
[351315912,1738511533167,-446.75610386,0.00013972,2]
[351315913,1738511533176,-1228.14,0.00013972,2]
[351315914,1738511533185,-6198.62,0.00013972,2]
[351315915,1738511533195,-4177.74,0.00013972,2]
[351315916,1738511533205,-853.08,0.00013972,2]
[351315917,1738511533215,-669.71,0.00013972,2]
[351315918,1738511533225,-539.5,0.00013972,2]
[351315919,1738511533234,-1402.67,0.00013972,2]
[351315920,1738511533243,-1801.53,0.00013972,2]
[351315921,1738511533253,-1549.92,0.00013972,2]
[351315922,1738511533263,-820.42,0.00013972,2]
[351315923,1738511533272,-569.44,0.00013972,2]
[351315924,1738511533282,-935.02,0.00013972,2]
[351315925,1738511533291,-816.63,0.00013972,2]
[351315926,1738511533300,-225.089609,0.00013972,2]
[351315927,1738511533310,-885.67,0.00013972,2]
[351315928,1738511533319,-745.12,0.00014029,2]
[351315929,1738511533328,-1000.0,0.00014055,2]
[351315930,1738511533338,-1332.82,0.00014102,2]
[351315931,1738511533347,-1964.01,0.00014102,2]
[351315932,1738511533355,-2603.59,0.00014102,2]
[351315933,1738511533365,-2889.94,0.00014102,2]
[351315934,1738511533374,-4743.23,0.00014102,2]
[351315935,1738511533383,-10523.62,0.00014102,2]
[351315936,1738511533392,-1554.63,0.00014102,2]
[351315937,1738511533401,-1284.59,0.00014102,2]
[351315938,1738511533411,-1679.21,0.00014102,2]
[351315939,1738511533420,-2652.81,0.00014102,2]
[351315940,1738511533429,-654.17,0.00014102,2]
[351315941,1738511533438,-1718.82,0.00014102,2]
[351315942,1738511533448,-1974.37,0.00014102,2]
[351315943,1738511533458,-2000.83,0.00014102,2]
[351315944,1738511533467,-836.56,0.00014102,2]
[351315945,1738511533477,-1343.39,0.00014102,2]
[351315946,1738511533487,-1186.75,0.00014102,2]
[351315947,1738511533496,-596.58,0.00014103,2]
[351315948,1738511533506,-151.0,0.00014103,2]
[351315949,1738511533515,-165.376134,0.00014103,2]
[351315950,1738511533524,-165.376134,0.00014103,2]
[351315951,1738511533536,-260.520012,0.00014103,2]
[351315952,1738511533545,-260.520012,0.00014103,2]
[351315953,1738511533555,-217.374194,0.00014103,2]
[351315954,1738511533564,-217.374194,0.00014103,2]
[351315955,1738511533573,-710.49,0.00014103,2]
[351315956,1738511533583,-1187.42,0.00014104,2]
[351315957,1738511533592,-817.82,0.00014104,2]
[351315958,1738511533602,-607.41,0.00014104,2]
[351315959,1738511533612,-1230.03,0.00014104,2]
[351315960,1738511533622,-615.34,0.00014104,2]
[351315961,1738511533633,-714.07,0.00014104,2]
[351315962,1738511533644,-1449.17,0.00014104,2]
[351315963,1738511533655,-1251.19,0.00014104,2]
[351315964,1738511533665,-1405.84,0.00014104,2]
[351315965,1738511533675,-1494.61,0.00014104,2]
[351315966,1738511533684,-828.44,0.00014104,2]
[351315967,1738511533694,-500.0,0.00014104,2]
[351315968,1738511533704,-676.04,0.00014104,2]
[351315969,1738511533714,-535.23,0.00014104,2]
[351315970,1738511533724,-1723.36,0.00014104,2]
[351315971,1738511533733,-854.84,0.00014104,2]
[351315972,1738511533743,-1459.08,0.00014104,2]
[351315973,1738511533753,-1678.19,0.00014104,2]
[351315974,1738511533762,-571.62,0.00014104,2]
[351315975,1738511533772,-780.5,0.00014104,2]
[351315976,1738511533782,-1296.82,0.00014104,2]
[351315977,1738511533791,-1446.98,0.00014104,2]
[351315978,1738511533801,-618.81,0.00014104,2]
[351315979,1738511533810,-730.18,0.00014104,2]
[351315980,1738511533819,-644.95,0.00014104,2]
[351315981,1738511533829,-609.86,0.00014104,2]
[351315982,1738511533839,-323.22780939,0.00014107,2]
[351315983,1738511533848,-978.46,0.00014108,2]
[351315984,1738511533858,-518.13,0.00014108,2]
[351315985,1738511534084,-1147.35,0.00014108,2]
[351315986,1738511534117,-668.46,0.00014108,2]
[351315987,1738511534128,-1211.37,0.00014108,2]
[351315988,1738511534140,-594.76,0.00014108,2]
[351315989,1738511534151,-1093.43,0.00014108,2]
[351315990,1738511534162,-829.51,0.00014108,2]
[351315991,1738511534173,-1097.71,0.00014108,2]
[351315992,1738511534183,-1068.84,0.00014108,2]
[351315993,1738511534194,-561.08,0.00014108,2]
[351315994,1738511534208,-515.69,0.00014108,2]
[351315995,1738511534218,-653.67,0.00014108,2]
[351315996,1738511534228,-1093.31,0.00014108,2]
[351315997,1738511534238,-1053.18,0.00014108,2]
[351315998,1738511534248,-1273.51,0.00014108,2]
[351315999,1738511534257,-522.28,0.00014108,2]
[351316000,1738511534266,-1239.31,0.00014108,2]
[351316001,1738511534275,-740.34,0.00014108,2]
[351316002,1738511534285,-644.61,0.00014108,2]
[351316003,1738511534294,-913.35,0.00014108,2]
[351316004,1738511534304,-1115.18,0.00014108,2]
[351316005,1738511534313,-1062.0,0.00014108,2]
[351316006,1738511534323,-945.68,0.00014108,2]
[351316007,1738511534333,-607.69,0.00014108,2]
[351316008,1738511534342,-522.96,0.00014108,2]
[351316009,1738511534352,-1035.26,0.00014108,2]
[351316010,1738511534361,-2196.81,0.00014108,2]
[351316011,1738511534371,-1325.26,0.00014108,2]
[351316012,1738511534380,-975.31,0.00014108,2]
[351316013,1738511534389,-1985.37,0.00014108,2]
[351316014,1738511534398,-918.08,0.00014108,2]
[351316015,1738511534407,-2083.26,0.00014108,2]
[351316016,1738511534416,-1965.57,0.00014108,2]
[351316017,1738511534426,-1323.45,0.00014108,2]
[351316018,1738511534435,-1635.63,0.00014108,2]
[351316019,1738511534444,-5662.33,0.00014108,2]
[351316020,1738511534455,-774.16,0.00014108,2]
[351316021,1738511534464,-782.48,0.00014108,2]
[351316022,1738511534474,-7030.17,0.00014108,2]
[351316023,1738511534484,-2514.52,0.00014108,2]
[351316024,1738511534494,-681.48,0.00014108,2]
[351316025,1738511534503,-790.42,0.00014108,2]
[351316026,1738511534517,-3657.25,0.00014108,2]
[351316027,1738511534526,-3049.12,0.00014108,2]
[351316028,1738511534536,-1745.16,0.00014108,2]
[351316029,1738511534546,-1031.35,0.00014108,2]
[351316030,1738511534556,-1816.81,0.00014108,2]
[351316031,1738511534566,-528.0,0.00014108,2]
[351316032,1738511534575,-4052.48,0.00014108,2]
[351316033,1738511534584,-602.22,0.00014108,2]
[351316034,1738511534593,-1474.86,0.00014108,2]
[351316035,1738511534603,-4337.5,0.00014108,2]